[Event "Early-Titled-Tuesday-Blitz-September-12-2023"]
[Site "Chess.com"]
[Date "2023.09.12"]
[Round "9"]
[White "amintabatabaei"]
[Black "bardiya_Daneshvar"]
[Result "1-0"]
[WhiteElo "3057"]
[BlackElo "2951"]
[TimeControl "180+1"]
[EndTime "9:45:41 PDT"]
[Termination "amintabatabaei won on time"]

1. Nf3 {[%clk 0:03:00.9]} 1... d5 {[%clk 0:02:59.5]} 2. g3 {[%clk 0:02:59.4]}
2... g6 {[%clk 0:02:59.9]} 3. Bg2 {[%clk 0:02:59.1]} 3... Bg7 {[%clk 0:02:59.9]}
4. d4 {[%clk 0:02:59.1]} 4... Nf6 {[%clk 0:03:00.5]} 5. O-O {[%clk 0:02:59.3]}
5... O-O {[%clk 0:03:01.1]} 6. c4 {[%clk 0:02:59.7]} 6... c6 {[%clk 0:03:01.7]}
7. Nc3 {[%clk 0:02:49.4]} 7... dxc4 {[%clk 0:03:00.7]} 8. e4 {[%clk 0:02:49.8]}
8... b5 {[%clk 0:03:00.6]} 9. Qe2 {[%clk 0:02:49.6]} 9... Na6 {[%clk 0:02:58.1]}
10. Rd1 {[%clk 0:02:44.9]} 10... Nb4 {[%clk 0:02:57.5]} 11. Be3 {[%clk
0:02:41.7]} 11... Bb7 {[%clk 0:02:42]} 12. a3 {[%clk 0:02:38.1]} 12... Nd3
{[%clk 0:02:40.6]} 13. Ne5 {[%clk 0:02:37.1]} 13... Nxe5 {[%clk 0:02:30]} 14.
dxe5 {[%clk 0:02:38]} 14... Nd7 {[%clk 0:02:30.2]} 15. e6 {[%clk 0:02:37.7]}
15... fxe6 {[%clk 0:02:29.1]} 16. Bh3 {[%clk 0:02:37.8]} 16... Bc8 {[%clk
0:02:09]} 17. Bxe6+ {[%clk 0:02:36.7]} 17... Kh8 {[%clk 0:02:08.9]} 18. Qg4
{[%clk 0:02:13.2]} 18... Ne5 {[%clk 0:01:42]} 19. Rxd8 {[%clk 0:02:13.8]} 19...
Nxg4 {[%clk 0:01:42.2]} 20. Rxc8 {[%clk 0:02:14.5]} 20... Raxc8 {[%clk
0:01:38.5]} 21. Bxg4 {[%clk 0:02:14.8]} 21... Rcd8 {[%clk 0:01:37.8]} 22. Bxa7
{[%clk 0:01:44.6]} 22... Rd2 {[%clk 0:01:34.1]} 23. Rb1 {[%clk 0:01:44.8]} 23...
Bh6 {[%clk 0:01:03.3]} 24. Bc5 {[%clk 0:01:26]} 24... Rc2 {[%clk 0:00:51.1]} 25.
f4 {[%clk 0:01:15.3]} 25... Rd8 {[%clk 0:00:37.6]} 26. Bd1 {[%clk 0:01:11.7]}
26... Rcd2 {[%clk 0:00:37.1]} 27. Bxe7 {[%clk 0:01:00.3]} 27... R8d3 {[%clk
0:00:31.7]} 28. e5 {[%clk 0:00:52.7]} 28... Re3 {[%clk 0:00:28.1]} 29. Bg4
{[%clk 0:00:45.1]} 29... g5 {[%clk 0:00:18.7]} 30. Bc5 {[%clk 0:00:40.7]} 30...
gxf4 {[%clk 0:00:18.5]} 31. Bxe3 {[%clk 0:00:36.2]} 31... fxe3 {[%clk
0:00:19.4]} 32. e6 {[%clk 0:00:30.5]} 32... Kg8 {[%clk 0:00:17.6]} 33. Rd1
{[%clk 0:00:20.8]} 33... Bg7 {[%clk 0:00:10.5]} 34. Rxd2 {[%clk 0:00:18.7]}
34... exd2 {[%clk 0:00:11.4]} 35. Nd1 {[%clk 0:00:13.1]} 35... Bxb2 {[%clk
0:00:10.1]} 36. Kf2 {[%clk 0:00:09.6]} 36... Bxa3 {[%clk 0:00:04.6]} 37. Ke3
{[%clk 0:00:10.1]} 37... Bc1 {[%clk 0:00:03.6]} 38. Kd4 {[%clk 0:00:09]} 38...
Kf8 {[%clk 0:00:01.7]} 39. Bf3 {[%clk 0:00:09.5]} 39... Ke7 {[%clk 0:00:01.1]}
40. Bxc6 {[%clk 0:00:09.9]} 1-0

[Event "Early-Titled-Tuesday-Blitz-September-12-2023"]
[Site "Chess.com"]
[Date "2023.09.12"]
[Round "9"]
[White "Aradhya2000"]
[Black "DanyKopy"]
[Result "1-0"]
[WhiteElo "2704"]
[BlackElo "2528"]
[TimeControl "180+1"]
[EndTime "9:45:44 PDT"]
[Termination "Aradhya2000 won by resignation"]

1. d4 {[%clk 0:03:00.9]} 1... Nf6 {[%clk 0:02:58.7]} 2. c4 {[%clk 0:03:01.6]}
2... e6 {[%clk 0:02:59]} 3. Nf3 {[%clk 0:03:01.8]} 3... d5 {[%clk 0:02:59.6]} 4.
g3 {[%clk 0:03:01.9]} 4... Be7 {[%clk 0:02:58.2]} 5. Bg2 {[%clk 0:03:01.9]} 5...
O-O {[%clk 0:02:58.6]} 6. O-O {[%clk 0:03:00.8]} 6... c6 {[%clk 0:02:59.2]} 7.
b3 {[%clk 0:03:00]} 7... Nbd7 {[%clk 0:02:56.2]} 8. Nc3 {[%clk 0:02:59.4]} 8...
b6 {[%clk 0:02:38]} 9. Bb2 {[%clk 0:02:58.7]} 9... Bb7 {[%clk 0:02:33.8]} 10.
Qc2 {[%clk 0:02:56.8]} 10... Rc8 {[%clk 0:02:22.4]} 11. Rad1 {[%clk 0:02:56.2]}
11... Qc7 {[%clk 0:02:07.3]} 12. Rfe1 {[%clk 0:02:44.5]} 12... Bb4 {[%clk
0:02:01.1]} 13. a3 {[%clk 0:02:33]} 13... Bxc3 {[%clk 0:02:00.9]} 14. Bxc3
{[%clk 0:02:33.9]} 14... Ne4 {[%clk 0:02:01.2]} 15. Bb2 {[%clk 0:02:33.2]} 15...
c5 {[%clk 0:01:59.8]} 16. cxd5 {[%clk 0:02:32.3]} 16... Bxd5 {[%clk 0:01:59.1]}
17. Ne5 {[%clk 0:02:26.5]} 17... cxd4 {[%clk 0:01:50.9]} 18. Qxc7 {[%clk
0:02:24.4]} 18... Rxc7 {[%clk 0:01:51.8]} 19. Nxd7 {[%clk 0:02:24.3]} 19... Rxd7
{[%clk 0:01:52.7]} 20. Rxd4 {[%clk 0:02:24.5]} 20... Nf6 {[%clk 0:01:37.6]} 21.
Bxd5 {[%clk 0:02:08.8]} 21... Rxd5 {[%clk 0:01:37]} 22. Rc1 {[%clk 0:02:09.4]}
22... Rxd4 {[%clk 0:01:19.4]} 23. Bxd4 {[%clk 0:02:10.3]} 23... Rd8 {[%clk
0:01:18.9]} 24. e3 {[%clk 0:02:03.8]} 24... h6 {[%clk 0:01:11.1]} 25. Rc7 {[%clk
0:02:01.4]} 25... Rd7 {[%clk 0:01:08.9]} 26. Rc8+ {[%clk 0:01:58.6]} 26... Kh7
{[%clk 0:01:08.6]} 27. a4 {[%clk 0:01:58.6]} 27... Nd5 {[%clk 0:00:57.8]} 28.
Kg2 {[%clk 0:01:55.2]} 28... Rc7 {[%clk 0:00:53.4]} 29. Ra8 {[%clk 0:01:51.9]}
29... Nb4 {[%clk 0:00:45.6]} 30. a5 {[%clk 0:01:49]} 30... Nc6 {[%clk
0:00:30.2]} 31. axb6 {[%clk 0:01:35]} 31... axb6 {[%clk 0:00:31.1]} 32. Bxb6
{[%clk 0:01:35]} 32... Rb7 {[%clk 0:00:30.8]} 33. Bc5 {[%clk 0:01:32.1]} 33...
Rxb3 {[%clk 0:00:30.4]} 34. Ra6 {[%clk 0:01:32.2]} 34... Ne5 {[%clk 0:00:28.9]}
35. Bd4 {[%clk 0:01:27]} 35... Nd3 {[%clk 0:00:28.2]} 36. f4 {[%clk 0:01:20.8]}
36... g5 {[%clk 0:00:21.5]} 37. f5 {[%clk 0:00:48.9]} 37... exf5 {[%clk
0:00:16.8]} 38. Rf6 {[%clk 0:00:47.9]} 38... Ra3 {[%clk 0:00:16]} 39. Rxf7+
{[%clk 0:00:33.2]} 39... Kg6 {[%clk 0:00:15.8]} 40. Rf6+ {[%clk 0:00:33.7]}
40... Kh5 {[%clk 0:00:16.4]} 41. Rxf5 {[%clk 0:00:31.2]} 41... Ra2+ {[%clk
0:00:15.5]} 42. Kf3 {[%clk 0:00:30.1]} 42... Rxh2 {[%clk 0:00:09.8]} 43. g4+
{[%clk 0:00:22.4]} 43... Kh4 {[%clk 0:00:09.8]} 44. e4 {[%clk 0:00:18.8]} 44...
Rf2+ {[%clk 0:00:09.4]} 45. Bxf2+ {[%clk 0:00:17.7]} 45... Kh3 {[%clk
0:00:05.4]} 46. Bg3 {[%clk 0:00:17.2]} 1-0

[Event "Early-Titled-Tuesday-Blitz-September-12-2023"]
[Site "Chess.com"]
[Date "2023.09.12"]
[Round "9"]
[White "GlavkonVVS"]
[Black "Chessmissile07"]
[Result "1-0"]
[WhiteElo "2586"]
[BlackElo "2851"]
[TimeControl "180+1"]
[EndTime "9:45:44 PDT"]
[Termination "GlavkonVVS won by checkmate"]

1. c4 {[%clk 0:03:00.9]} 1... c5 {[%clk 0:02:53.8]} 2. Nc3 {[%clk 0:03:01.1]}
2... Nc6 {[%clk 0:02:52.5]} 3. g3 {[%clk 0:03:01.4]} 3... g6 {[%clk 0:02:52.8]}
4. Bg2 {[%clk 0:03:01.9]} 4... Bg7 {[%clk 0:02:53.2]} 5. Nf3 {[%clk 0:03:02.2]}
5... d6 {[%clk 0:02:52.6]} 6. d3 {[%clk 0:03:02.6]} 6... Nh6 {[%clk 0:02:52.6]}
7. O-O {[%clk 0:03:02.6]} 7... Nf5 {[%clk 0:02:52.7]} 8. Bd2 {[%clk 0:03:01.7]}
8... h5 {[%clk 0:02:51.5]} 9. h4 {[%clk 0:02:56.9]} 9... Bd7 {[%clk 0:02:43.2]}
10. a3 {[%clk 0:02:57.2]} 10... a5 {[%clk 0:02:42.1]} 11. Rb1 {[%clk 0:02:47.9]}
11... O-O {[%clk 0:02:36.4]} 12. Ne1 {[%clk 0:02:43.9]} 12... e5 {[%clk
0:02:10.1]} 13. Nc2 {[%clk 0:02:13.7]} 13... a4 {[%clk 0:02:09.5]} 14. Ne3
{[%clk 0:02:05.9]} 14... Nxe3 {[%clk 0:01:56.3]} 15. Bxe3 {[%clk 0:02:04.9]}
15... Nd4 {[%clk 0:01:54.7]} 16. Bxb7 {[%clk 0:02:02.3]} 16... Ra7 {[%clk
0:01:53.4]} 17. Bg2 {[%clk 0:02:02.2]} 17... Be6 {[%clk 0:01:50.2]} 18. Bxd4
{[%clk 0:01:54.9]} 18... exd4 {[%clk 0:01:49]} 19. Nxa4 {[%clk 0:01:55]} 19...
Bd7 {[%clk 0:01:44.3]} 20. b3 {[%clk 0:01:54.3]} 20... Qa5 {[%clk 0:01:43.8]}
21. Qc2 {[%clk 0:01:41.7]} 21... Bh6 {[%clk 0:01:41.3]} 22. Bd5 {[%clk
0:01:22.1]} 22... Re8 {[%clk 0:01:40.1]} 23. Rfe1 {[%clk 0:01:12.4]} 23... Bg4
{[%clk 0:01:29.7]} 24. Kf1 {[%clk 0:01:01.5]} 24... Rae7 {[%clk 0:01:20.1]} 25.
b4 {[%clk 0:00:57.5]} 25... Qc7 {[%clk 0:00:38.8]} 26. Bf3 {[%clk 0:00:43.9]}
26... Bh3+ {[%clk 0:00:38.2]} 27. Kg1 {[%clk 0:00:41.5]} 27... Bd7 {[%clk
0:00:38.8]} 28. b5 {[%clk 0:00:38.9]} 28... Qa5 {[%clk 0:00:37.9]} 29. Qb3
{[%clk 0:00:27.9]} 29... Bd2 {[%clk 0:00:22.7]} 30. Red1 {[%clk 0:00:26.9]}
30... Rxe2 {[%clk 0:00:23.3]} 31. Bxe2 {[%clk 0:00:25.3]} 31... Rxe2 {[%clk
0:00:24.2]} 32. Qc2 {[%clk 0:00:20.3]} 32... Bg4 {[%clk 0:00:21.4]} 33. b6
{[%clk 0:00:18.4]} 33... Bb4 {[%clk 0:00:13]} 34. axb4 {[%clk 0:00:16.3]} 34...
cxb4 {[%clk 0:00:10.5]} 35. b7 {[%clk 0:00:15.9]} 35... Rxc2 {[%clk 0:00:08.8]}
36. b8=Q+ {[%clk 0:00:16]} 36... Kg7 {[%clk 0:00:09.7]} 37. Qxb4 {[%clk
0:00:16.1]} 37... Qf5 {[%clk 0:00:10.2]} 38. Rf1 {[%clk 0:00:15.7]} 38... Qf3
{[%clk 0:00:08.6]} 39. Qb7 {[%clk 0:00:15.5]} 39... Qf5 {[%clk 0:00:08.2]} 40.
Qd5 {[%clk 0:00:15.1]} 40... Qf6 {[%clk 0:00:07.7]} 41. Rb6 {[%clk 0:00:13.8]}
41... Bh3 {[%clk 0:00:05.7]} 42. Qxd6 {[%clk 0:00:14]} 42... Qf5 {[%clk
0:00:05.3]} 43. Qxd4+ {[%clk 0:00:14.1]} 43... Kh7 {[%clk 0:00:05.7]} 44. Rf6
{[%clk 0:00:13.5]} 44... Qc8 {[%clk 0:00:03]} 45. Rxf7+ {[%clk 0:00:13.1]} 45...
Kg8 {[%clk 0:00:03.5]} 46. Qg7# {[%clk 0:00:13.6]} 1-0

[Event "Early-Titled-Tuesday-Blitz-September-12-2023"]
[Site "Chess.com"]
[Date "2023.09.12"]
[Round "9"]
[White "ljuks68"]
[Black "valemava"]
[Result "0-1"]
[WhiteElo "2425"]
[BlackElo "2323"]
[TimeControl "180+1"]
[EndTime "9:45:44 PDT"]
[Termination "valemava won on time"]

1. e4 {[%clk 0:02:52.8]} 1... c5 {[%clk 0:02:58.6]} 2. Nf3 {[%clk 0:02:52.6]}
2... Qa5 {[%clk 0:02:58.5]} 3. Be2 {[%clk 0:02:35]} 3... a6 {[%clk 0:02:51.9]}
4. O-O {[%clk 0:02:34.4]} 4... b5 {[%clk 0:02:52.2]} 5. d4 {[%clk 0:02:33.9]}
5... cxd4 {[%clk 0:02:51.8]} 6. Nxd4 {[%clk 0:02:33.1]} 6... Bb7 {[%clk
0:02:52.1]} 7. Bf3 {[%clk 0:02:32.2]} 7... Nc6 {[%clk 0:02:38.2]} 8. Nb3 {[%clk
0:02:29.3]} 8... Qc7 {[%clk 0:02:37.2]} 9. Nc5 {[%clk 0:02:26.7]} 9... Bc8
{[%clk 0:02:30.3]} 10. Be3 {[%clk 0:02:24.5]} 10... e6 {[%clk 0:02:30.1]} 11.
Nd3 {[%clk 0:02:20.3]} 11... d6 {[%clk 0:02:29.4]} 12. a4 {[%clk 0:02:18.9]}
12... b4 {[%clk 0:02:26.8]} 13. a5 {[%clk 0:02:18.4]} 13... Bb7 {[%clk
0:02:22.9]} 14. Bb6 {[%clk 0:02:17.3]} 14... Qd7 {[%clk 0:02:19.4]} 15. Qd2
{[%clk 0:02:13.9]} 15... Ne5 {[%clk 0:02:09.1]} 16. Nxe5 {[%clk 0:02:11]} 16...
dxe5 {[%clk 0:02:10]} 17. Qg5 {[%clk 0:02:01.5]} 17... f6 {[%clk 0:02:00.6]} 18.
Qg4 {[%clk 0:01:59.2]} 18... Nh6 {[%clk 0:01:58.6]} 19. Qh3 {[%clk 0:01:58.5]}
19... Be7 {[%clk 0:01:41.8]} 20. Rd1 {[%clk 0:01:49.2]} 20... Qc6 {[%clk
0:01:37]} 21. Nd2 {[%clk 0:01:36.9]} 21... O-O {[%clk 0:01:35.3]} 22. Nb3 {[%clk
0:01:35.4]} 22... Nf7 {[%clk 0:01:32.1]} 23. Rac1 {[%clk 0:01:32.7]} 23... Qa4
{[%clk 0:01:26.9]} 24. Qxe6 {[%clk 0:01:30.5]} 24... Rae8 {[%clk 0:01:22.4]} 25.
Qd7 {[%clk 0:01:19.7]} 25... Bc6 {[%clk 0:01:20.5]} 26. Qd3 {[%clk 0:01:10.5]}
26... Bb5 {[%clk 0:01:17.7]} 27. Qe3 {[%clk 0:01:09]} 27... Bc4 {[%clk
0:01:17.1]} 28. Nc5 {[%clk 0:01:03.4]} 28... Qc6 {[%clk 0:01:15]} 29. Nd7 {[%clk
0:00:58.6]} 29... Ng5 {[%clk 0:01:14.6]} 30. Nxf8 {[%clk 0:00:57.1]} 30... Bxf8
{[%clk 0:01:10.1]} 31. Be2 {[%clk 0:00:35.6]} 31... Ne6 {[%clk 0:01:04.8]} 32.
Bxc4 {[%clk 0:00:31]} 32... Qxc4 {[%clk 0:01:05.7]} 33. Qd3 {[%clk 0:00:30.2]}
33... Qa2 {[%clk 0:00:56.5]} 34. Qb3 {[%clk 0:00:23.4]} 34... Qxb3 {[%clk
0:00:54.3]} 35. cxb3 {[%clk 0:00:23.7]} 35... h5 {[%clk 0:00:40.2]} 36. Rc6
{[%clk 0:00:22.5]} 36... h4 {[%clk 0:00:38.7]} 37. h3 {[%clk 0:00:20.3]} 37...
Kh7 {[%clk 0:00:32.1]} 38. Be3 {[%clk 0:00:20.2]} 38... Kg6 {[%clk 0:00:23.9]}
39. Rxa6 {[%clk 0:00:19.7]} 39... Nc5 {[%clk 0:00:19.2]} 40. Bxc5 {[%clk
0:00:17.8]} 40... Bxc5 {[%clk 0:00:20.1]} 41. Rc6 {[%clk 0:00:14.4]} 41... Bd4
{[%clk 0:00:20.3]} 42. a6 {[%clk 0:00:10.8]} 42... Ra8 {[%clk 0:00:18.9]} 43.
Ra1 {[%clk 0:00:06.6]} 43... Bxb2 {[%clk 0:00:17.6]} 44. Ra4 {[%clk 0:00:06.6]}
44... Bd4 {[%clk 0:00:15.6]} 45. Rxb4 {[%clk 0:00:05.4]} 45... Kg5 {[%clk
0:00:14.5]} 46. Rb7 {[%clk 0:00:03.3]} 46... g6 {[%clk 0:00:13.4]} 47. a7 {[%clk
0:00:03.3]} 47... Bxa7 {[%clk 0:00:12.2]} 0-1

[Event "Early-Titled-Tuesday-Blitz-September-12-2023"]
[Site "Chess.com"]
[Date "2023.09.12"]
[Round "9"]
[White "itsdsyr"]
[Black "M_One1126"]
[Result "1/2-1/2"]
[WhiteElo "2246"]
[BlackElo "2570"]
[TimeControl "180+1"]
[EndTime "9:45:46 PDT"]
[Termination "Game drawn by 50-move rule"]

1. d4 {[%clk 0:02:58]} 1... Nf6 {[%clk 0:03:00.1]} 2. c4 {[%clk 0:02:45]} 2...
c6 {[%clk 0:03:00]} 3. Nf3 {[%clk 0:02:44.6]} 3... d5 {[%clk 0:03:00.9]} 4. Nc3
{[%clk 0:02:44.4]} 4... dxc4 {[%clk 0:03:01.1]} 5. a4 {[%clk 0:02:44]} 5... Bf5
{[%clk 0:03:01.7]} 6. e3 {[%clk 0:02:44]} 6... e6 {[%clk 0:03:02.4]} 7. Bxc4
{[%clk 0:02:44.8]} 7... Bb4 {[%clk 0:03:03]} 8. O-O {[%clk 0:02:43.5]} 8... Nbd7
{[%clk 0:03:03.7]} 9. Qe2 {[%clk 0:02:40.8]} 9... Bg4 {[%clk 0:03:04.3]} 10. h3
{[%clk 0:02:40.1]} 10... Bh5 {[%clk 0:03:02.9]} 11. e4 {[%clk 0:02:32.3]} 11...
Bxf3 {[%clk 0:03:02.8]} 12. Qxf3 {[%clk 0:02:29.6]} 12... Nb6 {[%clk 0:03:03.3]}
13. Bb3 {[%clk 0:02:16.4]} 13... Qxd4 {[%clk 0:03:02.4]} 14. Rd1 {[%clk
0:02:11.9]} 14... Qe5 {[%clk 0:03:02.1]} 15. Bf4 {[%clk 0:02:06.3]} 15... Qh5
{[%clk 0:03:02]} 16. g4 {[%clk 0:02:02.1]} 16... Qa5 {[%clk 0:02:48.8]} 17. Na2
{[%clk 0:01:56.6]} 17... Be7 {[%clk 0:02:42.9]} 18. Bd2 {[%clk 0:01:45.4]} 18...
Qe5 {[%clk 0:02:35.2]} 19. a5 {[%clk 0:01:30.1]} 19... Nbd7 {[%clk 0:02:34.9]}
20. Nc3 {[%clk 0:00:50.3]} 20... O-O {[%clk 0:02:24.3]} 21. g5 {[%clk
0:00:36.1]} 21... Nc5 {[%clk 0:02:08.4]} 22. gxf6 {[%clk 0:00:32]} 22... Qxf6
{[%clk 0:01:58.6]} 23. Qxf6 {[%clk 0:00:30.5]} 23... Bxf6 {[%clk 0:01:59.3]} 24.
Bc2 {[%clk 0:00:30.8]} 24... Rfd8 {[%clk 0:01:58.9]} 25. Be3 {[%clk 0:00:29.5]}
25... Nd7 {[%clk 0:01:55.7]} 26. f4 {[%clk 0:00:27.6]} 26... e5 {[%clk
0:01:54.8]} 27. f5 {[%clk 0:00:27.5]} 27... a6 {[%clk 0:01:54.8]} 28. Kg2 {[%clk
0:00:25.5]} 28... g6 {[%clk 0:01:54.6]} 29. Kf3 {[%clk 0:00:24]} 29... Kg7
{[%clk 0:01:53.1]} 30. Na4 {[%clk 0:00:22.9]} 30... Be7 {[%clk 0:01:45.9]} 31.
Nb6 {[%clk 0:00:22.5]} 31... Nc5 {[%clk 0:01:43.2]} 32. Nxa8 {[%clk 0:00:20.5]}
32... Rxa8 {[%clk 0:01:42.4]} 33. Bxc5 {[%clk 0:00:21.2]} 33... Bxc5 {[%clk
0:01:43.3]} 34. Rd7 {[%clk 0:00:21.4]} 34... gxf5 {[%clk 0:01:42]} 35. exf5
{[%clk 0:00:21.9]} 35... Kf6 {[%clk 0:01:42.9]} 36. Rg1 {[%clk 0:00:19.5]} 36...
Bxg1 {[%clk 0:01:39.7]} 37. Rxb7 {[%clk 0:00:19.5]} 37... Bd4 {[%clk 0:01:35.7]}
38. Bb3 {[%clk 0:00:18.9]} 38... Kxf5 {[%clk 0:01:34.2]} 39. Rxf7+ {[%clk
0:00:18.6]} 39... Kg6 {[%clk 0:01:34.5]} 40. Rb7 {[%clk 0:00:17]} 40... Rf8+
{[%clk 0:01:30.4]} 41. Ke2 {[%clk 0:00:16.7]} 41... Rf2+ {[%clk 0:01:30.6]} 42.
Kd3 {[%clk 0:00:17.1]} 42... Rxb2 {[%clk 0:01:31.5]} 43. Bf7+ {[%clk 0:00:16]}
43... Kf6 {[%clk 0:01:31.6]} 44. Rxb2 {[%clk 0:00:15.5]} 44... Bxb2 {[%clk
0:01:32.5]} 45. Bc4 {[%clk 0:00:16.4]} 45... Ba3 {[%clk 0:01:32.9]} 46. Bxa6
{[%clk 0:00:15.9]} 46... Bb4 {[%clk 0:01:33.2]} 47. Bb7 {[%clk 0:00:16.6]} 47...
Bxa5 {[%clk 0:01:28.7]} 48. Bxc6 {[%clk 0:00:17.2]} 48... Kf5 {[%clk 0:01:29.4]}
49. Be4+ {[%clk 0:00:17.3]} 49... Kf4 {[%clk 0:01:29.6]} 50. Bxh7 {[%clk
0:00:18.2]} 50... Bd8 {[%clk 0:01:29.3]} 51. Be4 {[%clk 0:00:18.4]} 51... Bh4
{[%clk 0:01:29.7]} 52. Bc6 {[%clk 0:00:17.8]} 52... Kg3 {[%clk 0:01:29.6]} 53.
Ke4 {[%clk 0:00:17.8]} 53... Bf6 {[%clk 0:01:30.5]} 54. Bd7 {[%clk 0:00:17.9]}
54... Bg7 {[%clk 0:01:31]} 55. Bg4 {[%clk 0:00:18.3]} 55... Kh4 {[%clk
0:01:31.9]} 56. Bd7 {[%clk 0:00:19.2]} 56... Bh8 {[%clk 0:01:32.8]} 57. Bg4
{[%clk 0:00:20]} 57... Bg7 {[%clk 0:01:33.7]} 58. Bd7 {[%clk 0:00:20.8]} 58...
Kg5 {[%clk 0:01:34.6]} 59. Bg4 {[%clk 0:00:21.7]} 59... Kf6 {[%clk 0:01:35.5]}
60. Bd7 {[%clk 0:00:22.6]} 60... Bh6 {[%clk 0:01:36.4]} 61. Bg4 {[%clk
0:00:23.5]} 61... Bf4 {[%clk 0:01:37.3]} 62. Be2 {[%clk 0:00:24.1]} 62... Bh2
{[%clk 0:01:37.8]} 63. Bg4 {[%clk 0:00:25]} 63... Kg5 {[%clk 0:01:38.6]} 64. Be2
{[%clk 0:00:25.9]} 64... Kh4 {[%clk 0:01:39.5]} 65. Bg4 {[%clk 0:00:26.8]} 65...
Bf4 {[%clk 0:01:40.4]} 66. Bc8 {[%clk 0:00:27.2]} 66... Kg5 {[%clk 0:01:41.3]}
67. Bg4 {[%clk 0:00:27.3]} 67... Kf6 {[%clk 0:01:42.2]} 68. Bc8 {[%clk
0:00:28.2]} 68... Ke7 {[%clk 0:01:42.7]} 69. Bg4 {[%clk 0:00:29.1]} 69... Bh2
{[%clk 0:01:43]} 70. Be2 {[%clk 0:00:30]} 70... Kd6 {[%clk 0:01:43.9]} 71. Bg4
{[%clk 0:00:30.9]} 71... Bg3 {[%clk 0:01:44.3]} 72. Be2 {[%clk 0:00:31.5]} 72...
Bf4 {[%clk 0:01:44.3]} 73. Bg4 {[%clk 0:00:32.4]} 73... Ke7 {[%clk 0:01:45]} 74.
Be2 {[%clk 0:00:33.3]} 74... Kf6 {[%clk 0:01:45.9]} 75. Bg4 {[%clk 0:00:34.2]}
75... Kg5 {[%clk 0:01:46.8]} 76. Bc8 {[%clk 0:00:35.1]} 76... Kh4 {[%clk
0:01:47.7]} 77. Bg4 {[%clk 0:00:36]} 77... Kg3 {[%clk 0:01:48.6]} 78. Bc8 {[%clk
0:00:34.6]} 78... Kf2 {[%clk 0:01:49.5]} 79. Bg4 {[%clk 0:00:35.5]} 79... Ke1
{[%clk 0:01:50.4]} 80. Bc8 {[%clk 0:00:36.4]} 80... Kd2 {[%clk 0:01:51.3]} 81.
Bg4 {[%clk 0:00:37.3]} 81... Kc3 {[%clk 0:01:52.2]} 82. Bc8 {[%clk 0:00:38.2]}
82... Kb4 {[%clk 0:01:53.1]} 83. Bg4 {[%clk 0:00:39.1]} 83... Ka5 {[%clk
0:01:54]} 84. Bc8 {[%clk 0:00:39.3]} 84... Kb6 {[%clk 0:01:54.9]} 85. Bg4 {[%clk
0:00:40.2]} 85... Kc7 {[%clk 0:01:55.8]} 86. Be2 {[%clk 0:00:41.1]} 86... Kd6
{[%clk 0:01:56.7]} 87. Bg4 {[%clk 0:00:42]} 87... Ke7 {[%clk 0:01:57.6]} 88. Be2
{[%clk 0:00:42.9]} 88... Kf6 {[%clk 0:01:58.5]} 89. Bg4 {[%clk 0:00:43.7]} 89...
Kg5 {[%clk 0:01:59.3]} 90. Be2 {[%clk 0:00:44.6]} 90... Kh4 {[%clk 0:02:00.2]}
91. Bg4 {[%clk 0:00:45.3]} 91... Bh2 {[%clk 0:02:01.1]} 92. Bc8 {[%clk
0:00:46.2]} 92... Bg1 {[%clk 0:02:01.7]} 93. Bg4 {[%clk 0:00:47]} 93... Bd4
{[%clk 0:02:02.2]} 94. Bc8 {[%clk 0:00:47.9]} 94... Ba7 {[%clk 0:02:02.1]} 95.
Bg4 {[%clk 0:00:48.8]} 95... Kg5 {[%clk 0:02:02.5]} 96. Bc8 {[%clk 0:00:49.7]}
96... Bb8 {[%clk 0:02:02.9]} 97. Bg4 {[%clk 0:00:50.6]} 97... Kf6 {[%clk
0:02:03.7]} 98. Bc8 {[%clk 0:00:51.5]} 98... Ke7 {[%clk 0:02:04.6]} 99. Bg4
{[%clk 0:00:52.3]} 99... Kd8 {[%clk 0:02:05.5]} 100. Be2 {[%clk 0:00:52.6]}
1/2-1/2

[Event "Early-Titled-Tuesday-Blitz-September-12-2023"]
[Site "Chess.com"]
[Date "2023.09.12"]
[Round "9"]
[White "vladislavkovalev"]
[Black "HansOnTwitch"]
[Result "0-1"]
[WhiteElo "2894"]
[BlackElo "3048"]
[TimeControl "180+1"]
[EndTime "9:45:47 PDT"]
[Termination "HansOnTwitch won on time"]

1. e4 {[%clk 0:02:57]} 1... c5 {[%clk 0:02:59.9]} 2. Nf3 {[%clk 0:02:57]} 2...
Nc6 {[%clk 0:03:00]} 3. d4 {[%clk 0:02:54.8]} 3... cxd4 {[%clk 0:03:00.9]} 4.
Nxd4 {[%clk 0:02:55.7]} 4... Nf6 {[%clk 0:03:01.1]} 5. Nc3 {[%clk 0:02:56.2]}
5... d6 {[%clk 0:03:01.3]} 6. Bg5 {[%clk 0:02:55.9]} 6... e6 {[%clk 0:03:01.9]}
7. Qd2 {[%clk 0:02:54.5]} 7... a6 {[%clk 0:03:01.8]} 8. O-O-O {[%clk 0:02:52.8]}
8... Bd7 {[%clk 0:03:01.8]} 9. f3 {[%clk 0:02:50.7]} 9... Be7 {[%clk 0:02:55.6]}
10. g4 {[%clk 0:02:41.2]} 10... b5 {[%clk 0:02:42.1]} 11. Nxc6 {[%clk
0:02:40.9]} 11... Bxc6 {[%clk 0:02:43]} 12. h4 {[%clk 0:02:35.1]} 12... Rc8
{[%clk 0:02:36.6]} 13. Kb1 {[%clk 0:02:34.8]} 13... h6 {[%clk 0:02:27.3]} 14.
Bxf6 {[%clk 0:02:04.3]} 14... Bxf6 {[%clk 0:02:23.5]} 15. Qxd6 {[%clk
0:02:03.4]} 15... Qxd6 {[%clk 0:02:09.9]} 16. Rxd6 {[%clk 0:02:04.3]} 16... Ke7
{[%clk 0:02:07]} 17. Rd3 {[%clk 0:01:55.8]} 17... h5 {[%clk 0:02:05.3]} 18. g5
{[%clk 0:01:55]} 18... Be5 {[%clk 0:02:05.4]} 19. a3 {[%clk 0:01:38.3]} 19...
Rhd8 {[%clk 0:01:40.4]} 20. Bg2 {[%clk 0:01:33.8]} 20... a5 {[%clk 0:01:32.8]}
21. Ne2 {[%clk 0:01:33]} 21... b4 {[%clk 0:01:31.9]} 22. axb4 {[%clk 0:01:33.1]}
22... axb4 {[%clk 0:01:32.8]} 23. f4 {[%clk 0:01:24.8]} 23... Bb8 {[%clk
0:01:18.8]} 24. Rhd1 {[%clk 0:00:54.4]} 24... Rxd3 {[%clk 0:01:13.4]} 25. cxd3
{[%clk 0:00:55.3]} 25... Ba4 {[%clk 0:01:04.4]} 26. Rd2 {[%clk 0:00:48.6]} 26...
Ba7 {[%clk 0:01:02.8]} 27. d4 {[%clk 0:00:48.1]} 27... Bb5 {[%clk 0:01:00]} 28.
Bf3 {[%clk 0:00:48.4]} 28... g6 {[%clk 0:00:59]} 29. f5 {[%clk 0:00:26.5]} 29...
exf5 {[%clk 0:00:49.4]} 30. exf5 {[%clk 0:00:27.4]} 30... gxf5 {[%clk
0:00:50.3]} 31. Nf4 {[%clk 0:00:26.3]} 31... Kd6 {[%clk 0:00:41.5]} 32. Bxh5
{[%clk 0:00:25]} 32... Bc4 {[%clk 0:00:41.4]} 33. Be2 {[%clk 0:00:22.2]} 33...
Bb3 {[%clk 0:00:41.6]} 34. Bd1 {[%clk 0:00:19.3]} 34... Bc4 {[%clk 0:00:40.7]}
35. b3 {[%clk 0:00:16.1]} 35... Bb5 {[%clk 0:00:38.4]} 36. Be2 {[%clk
0:00:15.7]} 36... Bxe2 {[%clk 0:00:35.5]} 37. Rxe2 {[%clk 0:00:11.8]} 37... Bxd4
{[%clk 0:00:33.6]} 38. h5 {[%clk 0:00:12.1]} 38... Rc3 {[%clk 0:00:31.7]} 39. g6
{[%clk 0:00:03.7]} 39... Rxb3+ {[%clk 0:00:27]} 40. Kc1 {[%clk 0:00:02.4]} 40...
fxg6 {[%clk 0:00:21.7]} 41. Rd2 {[%clk 0:00:02.7]} 41... Ke5 {[%clk 0:00:17.1]}
42. Nxg6+ {[%clk 0:00:03]} 42... Ke4 {[%clk 0:00:17.6]} 43. Re2+ {[%clk
0:00:01.8]} 43... Be3+ {[%clk 0:00:17.1]} 44. Kc2 {[%clk 0:00:02.1]} 44... Rc3+
{[%clk 0:00:17.4]} 45. Kb2 {[%clk 0:00:02.8]} 45... Rc6 {[%clk 0:00:15.8]} 46.
Nh4 {[%clk 0:00:02.3]} 46... f4 {[%clk 0:00:15.3]} 47. Rh2 {[%clk 0:00:02.1]}
47... f3 {[%clk 0:00:15]} 48. h6 {[%clk 0:00:01.7]} 48... f2 {[%clk 0:00:12.8]}
0-1